[Event "2026 Biel Blitz Open"]
[Site "Biel, CH"]
[Date "2026.07.19"]
[Round "13"]
[White "Xu, Chang(CQ)"]
[Black "Coban, Ege"]
[Result "1-0"]
[Board "27"]
[TimeControl "180+2"]
[WhiteFideId "8641757"]
[BlackFideId "26320304"]
[WhiteElo "2049"]
[BlackElo "1936"]
[WhiteClock "0:00:10"]
[BlackClock "0:00:05"]
[Variant "Standard"]
[EndDate "2026.07.19"]
[EndTime "16:21:35"]

1. e4 {[%clk 0:03:03]}  c5 {[%clk 0:03:04]} 2. Nf3 {[%clk 0:03:04]}  Nc6 {[%clk 0:03:05]} 3. Bb5 {[%clk 0:03:04]}  g6 {[%clk 0:03:06]}
4. O-O {[%clk 0:03:04]}  Bg7 {[%clk 0:03:08]} 5. c3 {[%clk 0:03:05]}  Nh6 {[%clk 0:03:08]} 6. d4 {[%clk 0:03:03]}  cxd4 {[%clk 0:03:08]}
7. cxd4 {[%clk 0:03:03]}  a6 {[%clk 0:03:05]} 8. Bc4 {[%clk 0:02:44]}  O-O {[%clk 0:02:57]} 9. Nc3 {[%clk 0:02:43]}  d6 {[%clk 0:02:56]}
10. h3 {[%clk 0:02:42]}  Kh8 {[%clk 0:02:46]} 11. Bg5 {[%clk 0:02:18]}  f6 {[%clk 0:02:38]} 12. Be3 {[%clk 0:02:13]}  f5 {[%clk 0:02:39]}
13. Qd2 {[%clk 0:02:10]}  fxe4 {[%clk 0:02:36]} 14. Bxh6 {[%clk 0:01:45]}  exf3 {[%clk 0:02:37]} 15. Bxg7+ {[%clk 0:01:45]}  Kxg7 {[%clk 0:02:38]}
16. Bd5 {[%clk 0:01:36]}  fxg2 {[%clk 0:02:31]} 17. Bxg2 {[%clk 0:01:37]}  e5 {[%clk 0:02:29]} 18. dxe5 {[%clk 0:01:30]}  Nxe5 {[%clk 0:02:23]}
19. Qd5 {[%clk 0:01:18]}  Qg5 {[%clk 0:01:59]} 20. f4 {[%clk 0:00:50]}  Rxf4 {[%clk 0:01:55]} 21. Rxf4 {[%clk 0:00:50]}  Qxf4 {[%clk 0:01:54]}
22. Rf1 {[%clk 0:00:49]}  Qe3+ {[%clk 0:01:55]} 23. Kh2 {[%clk 0:00:46]}  Bd7 {[%clk 0:01:44]} 24. Qxd6 {[%clk 0:00:44]}  Bf5 {[%clk 0:01:22]}
25. Nd5 {[%clk 0:00:43]}  Qd4 {[%clk 0:01:10]} 26. Qf6+ {[%clk 0:00:40]}  Kh6 {[%clk 0:01:11]} 27. Rxf5 {[%clk 0:00:36]}  Re8 {[%clk 0:00:43]}
28. Nf4 {[%clk 0:00:33]}  Ng4+ {[%clk 0:00:32]} 29. hxg4 {[%clk 0:00:30]}  Qxf6 {[%clk 0:00:31]} 30. Rxf6 {[%clk 0:00:29]}  Kg5 {[%clk 0:00:30]}
31. Rf7 {[%clk 0:00:27]}  Kxg4 {[%clk 0:00:30]} 32. Rxh7 {[%clk 0:00:24]}  Kxf4 {[%clk 0:00:31]} 33. Rxb7 {[%clk 0:00:23]}  Re2 {[%clk 0:00:26]}
34. a4 {[%clk 0:00:22]}  a5 {[%clk 0:00:28]} 35. Rb5 {[%clk 0:00:22]}  g5 {[%clk 0:00:28]} 36. Rxa5 {[%clk 0:00:22]}  Rxb2 {[%clk 0:00:29]}
37. Rb5 {[%clk 0:00:22]}  Ra2 {[%clk 0:00:31]} 38. Rb4+ {[%clk 0:00:21]}  Kf5 {[%clk 0:00:31]} 39. Kg3 {[%clk 0:00:22]}  Ra3+ {[%clk 0:00:29]}
40. Bf3 {[%clk 0:00:22]}  Ra1 {[%clk 0:00:29]} 41. Rb5+ {[%clk 0:00:22]}  Kf6 {[%clk 0:00:30]} 42. a5 {[%clk 0:00:23]}  Ra4 {[%clk 0:00:30]}
43. Bb7 {[%clk 0:00:21]}  Kg6 {[%clk 0:00:27]} 44. a6 {[%clk 0:00:22]}  Kf6 {[%clk 0:00:26]} 45. Rb6+ {[%clk 0:00:22]}  Kf5 {[%clk 0:00:30]}
46. Bf3 {[%clk 0:00:20]}  g4 {[%clk 0:00:28]} 47. Be2 {[%clk 0:00:10]}  Ra3+ {[%clk 0:00:30]} 48. Kg2 {[%clk 0:00:11]}  Ra2 {[%clk 0:00:28]}
49. Kf1 {[%clk 0:00:04]}  g3 {[%clk 0:00:27]} 50. Rb5+ {[%clk 0:00:03]}  Kf4 {[%clk 0:00:27]} 51. Rb4+ {[%clk 0:00:05]}  Kf5 {[%clk 0:00:22]}
52. Bd3+ {[%clk 0:00:05]}  Ke5 {[%clk 0:00:23]} 53. Rg4 {[%clk 0:00:06]}  Ra3 {[%clk 0:00:21]} 54. Ke2 {[%clk 0:00:07]}  Ra2+ {[%clk 0:00:18]}
55. Ke3 {[%clk 0:00:06]}  Ra3 {[%clk 0:00:18]} 56. Rxg3 {[%clk 0:00:06]}  Kd6 {[%clk 0:00:19]} 57. Rg6+ {[%clk 0:00:07]}  Kc7 {[%clk 0:00:20]}
58. Kd4 {[%clk 0:00:07]}  Ra4+ {[%clk 0:00:21]} 59. Bc4 {[%clk 0:00:08]}  Ra5 {[%clk 0:00:22]} 60. Rg7+ {[%clk 0:00:08]}  Kb8 {[%clk 0:00:23]}
61. Kc3 {[%clk 0:00:09]}  Ka8 {[%clk 0:00:22]} 62. Kb4 {[%clk 0:00:10]}  Re5 {[%clk 0:00:21]} 63. Bb5 {[%clk 0:00:11]}  Re6 {[%clk 0:00:21]}
64. Ka5 {[%clk 0:00:12]}  Rd6 {[%clk 0:00:20]} 65. Kb4 {[%clk 0:00:12]}  Re6 {[%clk 0:00:17]} 66. Kc5 {[%clk 0:00:13]}  Kb8 {[%clk 0:00:11]}
67. Bc6 {[%clk 0:00:08]}  Re5+ {[%clk 0:00:10]} 68. Kb6 {[%clk 0:00:09]}  Kc8 {[%clk 0:00:05]} 69. Rg8+ {[%clk 0:00:10]} 1-0

[Event "2026 Biel Blitz Open"]
[Site "Biel, CH"]
[Date "2026.07.19"]
[Round "13"]
[White "Huang,Hsuan-Chen"]
[Black "Liu, Bei"]
[Result "0-1"]
[Board "28"]
[TimeControl "180+2"]
[WhiteFideId "16303121"]
[BlackFideId "8603596"]
[WhiteElo "1833"]
[BlackElo "2170"]
[WhiteClock "0:00:03"]
[BlackClock "0:00:06"]
[Variant "Standard"]
[EndDate "2026.07.19"]
[EndTime "16:19:59"]

1. d4 {[%clk 0:03:03]}  d5 {[%clk 0:03:03]} 2. Nf3 {[%clk 0:03:03]}  Nf6 {[%clk 0:03:05]} 3. e3 {[%clk 0:03:04]}  c5 {[%clk 0:02:55]}
4. c3 {[%clk 0:03:04]}  e6 {[%clk 0:02:48]} 5. Bd3 {[%clk 0:03:04]}  Bd6 {[%clk 0:02:46]} 6. Nbd2 {[%clk 0:03:05]}  O-O {[%clk 0:02:46]}
7. O-O {[%clk 0:03:05]}  b6 {[%clk 0:02:47]} 8. Qe2 {[%clk 0:03:06]}  Bb7 {[%clk 0:02:48]} 9. e4 {[%clk 0:03:03]}  dxe4 {[%clk 0:02:48]}
10. Nxe4 {[%clk 0:03:03]}  Nxe4 {[%clk 0:02:44]} 11. Bxe4 {[%clk 0:03:04]}  Bxe4 {[%clk 0:02:45]} 12. Qxe4 {[%clk 0:03:04]}  Nd7 {[%clk 0:02:47]}
13. Re1 {[%clk 0:02:46]}  Nf6 {[%clk 0:02:26]} 14. Qe2 {[%clk 0:02:45]}  cxd4 {[%clk 0:02:15]} 15. Nxd4 {[%clk 0:02:43]}  h6 {[%clk 0:02:16]}
16. Be3 {[%clk 0:02:29]}  Nd5 {[%clk 0:02:11]} 17. Rad1 {[%clk 0:02:30]}  Qh4 {[%clk 0:01:49]} 18. Nf3 {[%clk 0:02:25]}  Qh5 {[%clk 0:01:30]}
19. Bc1 {[%clk 0:02:14]}  Rfd8 {[%clk 0:01:25]} 20. Qe4 {[%clk 0:02:10]}  Nf6 {[%clk 0:01:20]} 21. Qc6 {[%clk 0:02:04]}  Rac8 {[%clk 0:00:55]}
22. Qa4 {[%clk 0:01:53]}  b5 {[%clk 0:00:38]} 23. Qb3 {[%clk 0:01:50]}  a6 {[%clk 0:00:32]} 24. h3 {[%clk 0:01:35]}  Nd5 {[%clk 0:00:29]}
25. Nd4 {[%clk 0:01:25]}  Bc5 {[%clk 0:00:24]} 26. Re4 {[%clk 0:00:59]}  Nf6 {[%clk 0:00:16]} 27. Ree1 {[%clk 0:00:44]}  e5 {[%clk 0:00:13]}
28. Nf3 {[%clk 0:00:37]}  e4 {[%clk 0:00:13]} 29. Nd4 {[%clk 0:00:19]}  Qe5 {[%clk 0:00:14]} 30. Be3 {[%clk 0:00:17]}  Bd6 {[%clk 0:00:13]}
31. g3 {[%clk 0:00:18]}  Qh5 {[%clk 0:00:12]} 32. h4 {[%clk 0:00:09]}  Qg4 {[%clk 0:00:11]} 33. Rd2 {[%clk 0:00:08]}  Bxg3 {[%clk 0:00:08]}
34. fxg3 {[%clk 0:00:06]}  Qxg3+ {[%clk 0:00:09]} 35. Kf1 {[%clk 0:00:07]}  Ng4 {[%clk 0:00:10]} 36. Rf2 {[%clk 0:00:05]}  Nxe3+ {[%clk 0:00:09]}
37. Rxe3 {[%clk 0:00:06]}  Qxe3 {[%clk 0:00:10]} 38. Qxf7+ {[%clk 0:00:06]}  Kh8 {[%clk 0:00:12]} 39. Ne6 {[%clk 0:00:05]}  Qh3+ {[%clk 0:00:06]}
40. Ke2 {[%clk 0:00:03]}  Qd3+ {[%clk 0:00:06]} 0-1

[Event "2026 Biel Blitz Open"]
[Site "Biel, CH"]
[Date "2026.07.19"]
[Round "13"]
[White "Habibi, Ali"]
[Black "Berezovskii, Arina"]
[Result "1-0"]
[Board "30"]
[TimeControl "180+2"]
[WhiteFideId "4604393"]
[BlackFideId "34449850"]
[WhiteElo "2116"]
[BlackElo "1851"]
[WhiteTitle "IM"]
[BlackTitle "WCM"]
[WhiteClock "0:01:09"]
[BlackClock "0:00:04"]
[Variant "Standard"]
[EndDate "2026.07.19"]
[EndTime "16:25:34"]

1. Nf3 {[%clk 0:03:03]}  Nf6 {[%clk 0:03:04]} 2. g3 {[%clk 0:03:04]}  b6 {[%clk 0:03:05]} 3. Bg2 {[%clk 0:03:05]}  Bb7 {[%clk 0:03:06]}
4. O-O {[%clk 0:03:05]}  e6 {[%clk 0:03:08]} 5. d3 {[%clk 0:03:04]}  Be7 {[%clk 0:03:08]} 6. e4 {[%clk 0:03:02]}  d6 {[%clk 0:03:07]}
7. Nfd2 {[%clk 0:03:02]}  O-O {[%clk 0:03:06]} 8. e5 {[%clk 0:03:00]}  Bxg2 {[%clk 0:02:45]} 9. exf6 {[%clk 0:03:00]}  Bxf1 {[%clk 0:02:42]}
10. fxe7 {[%clk 0:03:00]}  Qxe7 {[%clk 0:02:42]} 11. Nxf1 {[%clk 0:02:58]}  f5 {[%clk 0:02:37]} 12. Nc3 {[%clk 0:02:56]}  Nd7 {[%clk 0:02:37]}
13. Qe2 {[%clk 0:02:55]}  Ne5 {[%clk 0:02:23]} 14. f4 {[%clk 0:02:53]}  Ng4 {[%clk 0:02:20]} 15. Ne3 {[%clk 0:02:46]}  Nxe3 {[%clk 0:02:16]}
16. Bxe3 {[%clk 0:02:46]}  e5 {[%clk 0:02:14]} 17. Re1 {[%clk 0:02:44]}  exf4 {[%clk 0:02:10]} 18. Bxf4 {[%clk 0:02:40]}  Qxe2 {[%clk 0:02:09]}
19. Rxe2 {[%clk 0:02:40]}  Rfe8 {[%clk 0:02:08]} 20. Rf2 {[%clk 0:02:37]}  Re1+ {[%clk 0:02:02]} 21. Kg2 {[%clk 0:02:37]}  Rae8 {[%clk 0:01:54]}
22. h4 {[%clk 0:02:38]}  Ra1 {[%clk 0:01:35]} 23. a3 {[%clk 0:02:37]}  Ree1 {[%clk 0:01:32]} 24. Nb5 {[%clk 0:02:35]}  Rg1+ {[%clk 0:01:20]}
25. Kf3 {[%clk 0:02:36]}  Rgf1 {[%clk 0:01:14]} 26. Nxc7 {[%clk 0:02:32]}  Rxf2+ {[%clk 0:01:13]} 27. Kxf2 {[%clk 0:02:32]}  Ra2 {[%clk 0:01:08]}
28. c4 {[%clk 0:02:23]}  Rxb2+ {[%clk 0:01:08]} 29. Ke3 {[%clk 0:02:24]}  Kf7 {[%clk 0:00:50]} 30. Bxd6 {[%clk 0:02:25]}  h6 {[%clk 0:00:44]}
31. Nb5 {[%clk 0:02:14]}  a6 {[%clk 0:00:33]} 32. Nc7 {[%clk 0:02:14]}  a5 {[%clk 0:00:32]} 33. Nb5 {[%clk 0:02:10]}  g5 {[%clk 0:00:21]}
34. hxg5 {[%clk 0:02:11]}  hxg5 {[%clk 0:00:22]} 35. Bc7 {[%clk 0:02:11]}  Rg2 {[%clk 0:00:20]} 36. Kf3 {[%clk 0:02:02]}  Rd2 {[%clk 0:00:21]}
37. Ke3 {[%clk 0:01:45]}  Rg2 {[%clk 0:00:22]} 38. Nc3 {[%clk 0:01:43]}  Ke6 {[%clk 0:00:13]} 39. Ne2 {[%clk 0:01:41]}  a4 {[%clk 0:00:04]}
40. Bxb6 {[%clk 0:01:41]}  Rh2 {[%clk 0:00:03]} 41. d4 {[%clk 0:01:37]}  Rh8 {[%clk 0:00:03]} 42. Ba5 {[%clk 0:01:33]}  Rc8 {[%clk 0:00:04]}
43. d5+ {[%clk 0:01:32]}  Ke5 {[%clk 0:00:04]} 44. Bc3+ {[%clk 0:01:32]}  Kd6 {[%clk 0:00:05]} 45. Kd4 {[%clk 0:01:33]}  Re8 {[%clk 0:00:04]}
46. Bb4+ {[%clk 0:01:32]}  Kd7 {[%clk 0:00:04]} 47. Nc3 {[%clk 0:01:33]}  f4 {[%clk 0:00:05]} 48. gxf4 {[%clk 0:01:34]}  gxf4 {[%clk 0:00:06]}
49. Ne4 {[%clk 0:01:25]}  Rc8 {[%clk 0:00:05]} 50. Be1 {[%clk 0:01:20]}  f3 {[%clk 0:00:05]} 51. c5 {[%clk 0:01:15]}  Rh8 {[%clk 0:00:04]}
52. c6+ {[%clk 0:01:19]}  Kc7 {[%clk 0:00:04]} 53. Bg3+ {[%clk 0:01:19]}  Kc8 {[%clk 0:00:04]} 54. d6 {[%clk 0:01:18]}  Rg8 {[%clk 0:00:03]}
55. Ke3 {[%clk 0:01:14]}  Rg4 {[%clk 0:00:03]} 56. Kxf3 {[%clk 0:01:12]}  Rg6 {[%clk 0:00:04]} 57. d7+ {[%clk 0:01:11]}  Kd8 {[%clk 0:00:05]}
58. Bh4+ {[%clk 0:01:12]}  Kc7 {[%clk 0:00:04]} 59. d8=Q+ {[%clk 0:01:11]}  Kxc6 {[%clk 0:00:04]} 60. Qe8+ {[%clk 0:01:11]}  Kb6 {[%clk 0:00:04]}
61. Qxg6+ {[%clk 0:01:09]} 1-0

[Event "2026 Biel Blitz Open"]
[Site "Biel, CH"]
[Date "2026.07.19"]
[Round "13"]
[White "Filipovic, Branko"]
[Black "Materia, Matteo"]
[Result "1-0"]
[Board "31"]
[TimeControl "180+2"]
[WhiteFideId "14507951"]
[BlackFideId "45150575"]
[WhiteElo "2109"]
[BlackElo "1881"]
[WhiteTitle "IM"]
[WhiteClock "0:01:25"]
[BlackClock "0:00:06"]
[Variant "Standard"]
[EndDate "2026.07.19"]
[EndTime "16:25:02"]

1. d4 {[%clk 0:03:03]}  Nf6 {[%clk 0:03:02]} 2. Bf4 {[%clk 0:03:03]}  d5 {[%clk 0:03:03]} 3. Nf3 {[%clk 0:03:02]}  g6 {[%clk 0:03:04]}
4. e3 {[%clk 0:03:03]}  Bg7 {[%clk 0:03:05]} 5. Be2 {[%clk 0:03:02]}  O-O {[%clk 0:03:05]} 6. O-O {[%clk 0:03:03]}  c5 {[%clk 0:03:06]}
7. c3 {[%clk 0:03:04]}  Nc6 {[%clk 0:02:54]} 8. Nbd2 {[%clk 0:03:03]}  cxd4 {[%clk 0:02:45]} 9. exd4 {[%clk 0:02:58]}  Bf5 {[%clk 0:02:45]}
10. h3 {[%clk 0:02:58]}  Rc8 {[%clk 0:02:46]} 11. Re1 {[%clk 0:02:39]}  a6 {[%clk 0:02:31]} 12. a4 {[%clk 0:02:39]}  Ne4 {[%clk 0:01:26]}
13. Nxe4 {[%clk 0:02:36]}  Bxe4 {[%clk 0:01:23]} 14. Nd2 {[%clk 0:02:29]}  Bf5 {[%clk 0:01:23]} 15. Bf3 {[%clk 0:02:27]}  Qd7 {[%clk 0:01:07]}
16. Nb3 {[%clk 0:02:11]}  b6 {[%clk 0:00:25]} 17. a5 {[%clk 0:02:10]}  Nxa5 {[%clk 0:00:19]} 18. Nxa5 {[%clk 0:02:10]}  bxa5 {[%clk 0:00:23]}
19. Rxa5 {[%clk 0:02:10]}  Be6 {[%clk 0:00:12]} 20. Rxa6 {[%clk 0:01:57]}  Qb5 {[%clk 0:00:13]} 21. Qa1 {[%clk 0:01:50]}  Bd7 {[%clk 0:00:06]}
22. Ra5 {[%clk 0:01:41]}  Qb6 {[%clk 0:00:05]} 23. Bxd5 {[%clk 0:01:27]}  e6 {[%clk 0:00:06]} 24. Bf3 {[%clk 0:01:28]}  Bc6 {[%clk 0:00:06]}
25. Ra6 {[%clk 0:01:25]} 1-0

[Event "2026 Biel Blitz Open"]
[Site "Biel, CH"]
[Date "2026.07.19"]
[Round "13"]
[White "Marinkovic, Zoran"]
[Black "Delesenne, Arthur"]
[Result "1-0"]
[Board "33"]
[TimeControl "180+2"]
[WhiteFideId "1346083"]
[BlackFideId "276979"]
[WhiteElo "2037"]
[BlackElo "1789"]
[WhiteClock "0:01:14"]
[BlackClock "0:01:39"]
[Variant "Standard"]
[EndDate "2026.07.19"]
[EndTime "16:25:10"]

1. e4 {[%clk 0:03:03]}  c5 {[%clk 0:03:04]} 2. Nf3 {[%clk 0:03:04]}  Nc6 {[%clk 0:03:05]} 3. b4 {[%clk 0:03:04]}  cxb4 {[%clk 0:03:04]}
4. d4 {[%clk 0:03:05]}  g6 {[%clk 0:03:01]} 5. a3 {[%clk 0:02:47]}  bxa3 {[%clk 0:02:59]} 6. Bxa3 {[%clk 0:02:48]}  Bg7 {[%clk 0:02:59]}
7. Bc4 {[%clk 0:02:35]}  e6 {[%clk 0:02:45]} 8. O-O {[%clk 0:02:30]}  Nge7 {[%clk 0:02:44]} 9. c3 {[%clk 0:02:23]}  O-O {[%clk 0:02:44]}
10. d5 {[%clk 0:02:20]}  Ne5 {[%clk 0:02:37]} 11. Nxe5 {[%clk 0:02:12]}  Bxe5 {[%clk 0:02:37]} 12. f4 {[%clk 0:02:03]}  Qb6+ {[%clk 0:02:29]}
13. Kh1 {[%clk 0:02:03]}  Bg7 {[%clk 0:02:21]} 14. Bxe7 {[%clk 0:02:03]}  Re8 {[%clk 0:02:20]} 15. Bh4 {[%clk 0:01:45]}  Qe3 {[%clk 0:02:11]}
16. Qd3 {[%clk 0:01:43]}  Qc5 {[%clk 0:02:03]} 17. e5 {[%clk 0:01:40]}  a6 {[%clk 0:02:01]} 18. Bf2 {[%clk 0:01:35]}  Qc7 {[%clk 0:02:00]}
19. d6 {[%clk 0:01:32]}  Qb8 {[%clk 0:01:59]} 20. Bb6 {[%clk 0:01:28]}  Rf8 {[%clk 0:01:50]} 21. Nd2 {[%clk 0:01:22]}  f6 {[%clk 0:01:50]}
22. Qe4 {[%clk 0:01:14]}  fxe5 {[%clk 0:01:39]} 23. fxe5 {[%clk 0:01:14]} 1-0

[Event "2026 Biel Blitz Open"]
[Site "Biel, CH"]
[Date "2026.07.19"]
[Round "13"]
[White "Trubini, Timon"]
[Black "Osmani, Xhevdet"]
[Result "1-0"]
[Board "34"]
[TimeControl "180+2"]
[WhiteFideId "1347799"]
[BlackFideId "22104569"]
[WhiteElo "1788"]
[BlackElo "1959"]
[WhiteClock "0:01:12"]
[BlackClock "0:01:47"]
[Variant "Standard"]
[EndDate "2026.07.19"]
[EndTime "16:15:14"]

1. e4 {[%clk 0:03:02]}  c6 {[%clk 0:03:02]} 2. d4 {[%clk 0:03:00]}  d5 {[%clk 0:03:04]} 3. e5 {[%clk 0:03:01]}  Bf5 {[%clk 0:03:05]}
4. Nf3 {[%clk 0:02:59]}  Bc8 {[%clk 0:02:57]} 5. c4 {[%clk 0:02:58]}  e6 {[%clk 0:02:58]} 6. cxd5 {[%clk 0:02:53]}  cxd5 {[%clk 0:02:54]}
7. Bd3 {[%clk 0:02:52]}  Ne7 {[%clk 0:02:55]} 8. O-O {[%clk 0:02:52]}  Ng6 {[%clk 0:02:56]} 9. Nc3 {[%clk 0:02:48]}  a6 {[%clk 0:02:58]}
10. Re1 {[%clk 0:02:41]}  Be7 {[%clk 0:02:59]} 11. a3 {[%clk 0:02:34]}  b5 {[%clk 0:03:00]} 12. g3 {[%clk 0:02:27]}  O-O {[%clk 0:03:00]}
13. h4 {[%clk 0:02:25]}  Re8 {[%clk 0:03:00]} 14. Ng5 {[%clk 0:02:10]}  Bb7 {[%clk 0:03:00]} 15. Qh5 {[%clk 0:02:04]}  Bxg5 {[%clk 0:02:39]}
16. Bxg5 {[%clk 0:01:55]}  Qc7 {[%clk 0:02:39]} 17. Rac1 {[%clk 0:01:53]}  Qd7 {[%clk 0:02:40]} 18. Qf3 {[%clk 0:01:47]}  Nc6 {[%clk 0:02:40]}
19. h5 {[%clk 0:01:38]}  Nf8 {[%clk 0:02:33]} 20. Ne2 {[%clk 0:01:32]}  Rac8 {[%clk 0:02:32]} 21. h6 {[%clk 0:01:30]}  g6 {[%clk 0:02:32]}
22. Qf6 {[%clk 0:01:22]}  Qd8 {[%clk 0:01:47]} 23. Qg7# {[%clk 0:01:12]} 1-0

[Event "2026 Biel Blitz Open"]
[Site "Biel, CH"]
[Date "2026.07.19"]
[Round "13"]
[White "Havolli, Daut"]
[Black "Jelicic, Hugo"]
[Result "1-0"]
[Board "36"]
[TimeControl "180+2"]
[WhiteFideId "1315200"]
[BlackFideId "1349040"]
[WhiteElo "1950"]
[BlackElo "1804"]
[WhiteClock "0:00:13"]
[BlackClock "0:00:06"]
[Variant "Standard"]
[EndDate "2026.07.19"]
[EndTime "16:28:43"]

1. d4 {[%clk 0:03:02]}  d5 {[%clk 0:03:02]} 2. Bf4 {[%clk 0:03:00]}  c5 {[%clk 0:02:56]} 3. e3 {[%clk 0:03:00]}  Nc6 {[%clk 0:02:55]}
4. Nc3 {[%clk 0:03:00]}  cxd4 {[%clk 0:02:17]} 5. exd4 {[%clk 0:02:36]}  Qa5 {[%clk 0:01:37]} 6. Nf3 {[%clk 0:02:27]}  Nf6 {[%clk 0:01:35]}
7. Bd3 {[%clk 0:02:26]}  Bg4 {[%clk 0:01:31]} 8. Be3 {[%clk 0:02:15]}  e6 {[%clk 0:01:19]} 9. a3 {[%clk 0:02:12]}  a6 {[%clk 0:00:58]}
10. h3 {[%clk 0:02:10]}  Bh5 {[%clk 0:00:58]} 11. O-O {[%clk 0:02:06]}  Qc7 {[%clk 0:01:00]} 12. Be2 {[%clk 0:01:57]}  Bd6 {[%clk 0:00:59]}
13. Bg5 {[%clk 0:01:50]}  O-O {[%clk 0:00:40]} 14. Qd3 {[%clk 0:01:43]}  Bg6 {[%clk 0:00:37]} 15. Qd2 {[%clk 0:01:47]}  Ne4 {[%clk 0:00:38]}
16. Nxe4 {[%clk 0:01:40]}  Bxe4 {[%clk 0:00:38]} 17. c3 {[%clk 0:01:34]}  f5 {[%clk 0:00:28]} 18. Ne1 {[%clk 0:01:12]}  h6 {[%clk 0:00:27]}
19. Bh4 {[%clk 0:01:12]}  f4 {[%clk 0:00:27]} 20. f3 {[%clk 0:01:12]}  Bf5 {[%clk 0:00:25]} 21. Bd3 {[%clk 0:01:09]}  Bxd3 {[%clk 0:00:22]}
22. Nxd3 {[%clk 0:01:10]}  Rae8 {[%clk 0:00:16]} 23. Rae1 {[%clk 0:01:10]}  Rf5 {[%clk 0:00:16]} 24. Re2 {[%clk 0:01:03]}  e5 {[%clk 0:00:11]}
25. dxe5 {[%clk 0:00:46]}  Nxe5 {[%clk 0:00:04]} 26. Nxe5 {[%clk 0:00:46]}  Rfxe5 {[%clk 0:00:05]} 27. Rxe5 {[%clk 0:00:39]}  Rxe5 {[%clk 0:00:07]}
28. Re1 {[%clk 0:00:18]}  Qb6+ {[%clk 0:00:09]} 29. Bf2 {[%clk 0:00:15]}  Rxe1+ {[%clk 0:00:10]} 30. Qxe1 {[%clk 0:00:14]}  Qxb2 {[%clk 0:00:11]}
31. Qe6+ {[%clk 0:00:13]}  Kh8 {[%clk 0:00:12]} 32. Qxd6 {[%clk 0:00:13]}  Qc1+ {[%clk 0:00:08]} 33. Kh2 {[%clk 0:00:14]}  Qxc3 {[%clk 0:00:07]}
34. Qxd5 {[%clk 0:00:14]}  Qxa3 {[%clk 0:00:07]} 35. Qxb7 {[%clk 0:00:14]}  Qa2 {[%clk 0:00:04]} 36. Bd4 {[%clk 0:00:12]}  Qg8 {[%clk 0:00:04]}
37. Qxa6 {[%clk 0:00:12]}  Qf8 {[%clk 0:00:06]} 38. Qd6 {[%clk 0:00:12]}  Kh7 {[%clk 0:00:06]} 39. Qxf8 {[%clk 0:00:13]} 1-0

[Event "2026 Biel Blitz Open"]
[Site "Biel, CH"]
[Date "2026.07.19"]
[Round "13"]
[White "Garcia, Miguel"]
[Black "Pinelli, Gian"]
[Result "0-1"]
[Board "37"]
[TimeControl "180+2"]
[WhiteFideId "1317431"]
[BlackFideId "1348710"]
[WhiteElo "1938"]
[BlackElo "1751"]
[WhiteClock "0:00:05"]
[BlackClock "0:00:12"]
[Variant "Standard"]
[EndDate "2026.07.19"]
[EndTime "16:25:40"]

1. b3 {[%clk 0:03:03]}  Nf6 {[%clk 0:03:02]} 2. Bb2 {[%clk 0:03:04]}  d5 {[%clk 0:02:53]} 3. e3 {[%clk 0:03:03]}  c5 {[%clk 0:02:48]}
4. Nf3 {[%clk 0:03:00]}  Bg4 {[%clk 0:02:44]} 5. Be2 {[%clk 0:03:01]}  e6 {[%clk 0:02:44]} 6. h3 {[%clk 0:03:01]}  Bh5 {[%clk 0:02:45]}
7. O-O {[%clk 0:02:56]}  Nc6 {[%clk 0:02:44]} 8. a3 {[%clk 0:02:53]}  a5 {[%clk 0:02:44]} 9. c4 {[%clk 0:02:49]}  Be7 {[%clk 0:02:41]}
10. d4 {[%clk 0:02:45]}  b6 {[%clk 0:02:31]} 11. Ne5 {[%clk 0:02:33]}  Bxe2 {[%clk 0:02:30]} 12. Qxe2 {[%clk 0:02:33]}  Nxe5 {[%clk 0:02:28]}
13. dxe5 {[%clk 0:02:34]}  Nd7 {[%clk 0:02:29]} 14. Nd2 {[%clk 0:02:26]}  Qc7 {[%clk 0:02:28]} 15. Nf3 {[%clk 0:02:26]}  O-O {[%clk 0:02:15]}
16. Rfd1 {[%clk 0:02:26]}  dxc4 {[%clk 0:02:12]} 17. Qxc4 {[%clk 0:02:24]}  Rfd8 {[%clk 0:02:11]} 18. Rd3 {[%clk 0:02:08]}  Nf8 {[%clk 0:01:42]}
19. Rad1 {[%clk 0:02:05]}  Ng6 {[%clk 0:01:41]} 20. Qc2 {[%clk 0:01:45]}  Rxd3 {[%clk 0:01:37]} 21. Rxd3 {[%clk 0:01:46]}  Rd8 {[%clk 0:01:38]}
22. Qd1 {[%clk 0:01:45]}  Rxd3 {[%clk 0:01:33]} 23. Qxd3 {[%clk 0:01:46]}  Qd8 {[%clk 0:01:34]} 24. Qxd8+ {[%clk 0:01:38]}  Bxd8 {[%clk 0:01:34]}
25. a4 {[%clk 0:01:31]}  h6 {[%clk 0:01:35]} 26. Nd2 {[%clk 0:01:30]}  Kf8 {[%clk 0:01:35]} 27. Nc4 {[%clk 0:01:29]}  Ke7 {[%clk 0:01:36]}
28. f3 {[%clk 0:01:22]}  Bc7 {[%clk 0:01:31]} 29. Kf2 {[%clk 0:01:20]}  f6 {[%clk 0:01:23]} 30. exf6+ {[%clk 0:01:19]}  gxf6 {[%clk 0:01:24]}
31. Nd2 {[%clk 0:01:04]}  Ne5 {[%clk 0:01:22]} 32. Ke2 {[%clk 0:01:01]}  Nc6 {[%clk 0:01:23]} 33. Ne4 {[%clk 0:00:59]}  e5 {[%clk 0:01:17]}
34. Bc3 {[%clk 0:00:53]}  Ke6 {[%clk 0:01:15]} 35. g4 {[%clk 0:00:53]}  Ne7 {[%clk 0:01:13]} 36. h4 {[%clk 0:00:42]}  Nd5 {[%clk 0:01:10]}
37. Bd2 {[%clk 0:00:41]}  Bd8 {[%clk 0:01:11]} 38. Kd3 {[%clk 0:00:34]}  Be7 {[%clk 0:01:00]} 39. h5 {[%clk 0:00:31]}  f5 {[%clk 0:00:56]}
40. Ng3 {[%clk 0:00:29]}  fxg4 {[%clk 0:00:55]} 41. fxg4 {[%clk 0:00:30]}  Nf6 {[%clk 0:00:55]} 42. g5 {[%clk 0:00:22]}  hxg5 {[%clk 0:00:50]}
43. h6 {[%clk 0:00:20]}  Nh7 {[%clk 0:00:50]} 44. e4 {[%clk 0:00:18]}  Bf8 {[%clk 0:00:44]} 45. Nf5 {[%clk 0:00:18]}  g4 {[%clk 0:00:25]}
46. Be3 {[%clk 0:00:18]}  Kf6 {[%clk 0:00:18]} 47. Kc4 {[%clk 0:00:18]}  Ng5 {[%clk 0:00:19]} 48. Bxg5+ {[%clk 0:00:15]}  Kxg5 {[%clk 0:00:19]}
49. Kb5 {[%clk 0:00:16]}  Bxh6 {[%clk 0:00:14]} 50. Kxb6 {[%clk 0:00:16]}  Bf8 {[%clk 0:00:07]} 51. Kxa5 {[%clk 0:00:15]}  Kf4 {[%clk 0:00:09]}
52. Kb5 {[%clk 0:00:15]}  Kxe4 {[%clk 0:00:09]} 53. Nh4 {[%clk 0:00:16]}  g3 {[%clk 0:00:09]} 54. Ng2 {[%clk 0:00:17]}  Kf3 {[%clk 0:00:10]}
55. Ne1+ {[%clk 0:00:18]}  Kf2 {[%clk 0:00:12]} 56. Nd3+ {[%clk 0:00:19]}  Kf1 {[%clk 0:00:12]} 57. Nxe5 {[%clk 0:00:17]}  g2 {[%clk 0:00:12]}
58. Nf3 {[%clk 0:00:18]}  Kf2 {[%clk 0:00:12]} 59. Nh4 {[%clk 0:00:05]} 0-1